lending/lending_fUSD_20240710
["ID","MTS","AMOUNT","RATE_DAILY","PERIOD"]
[331635720,1720596781788,-500.0,0.00013753,2]
[331635721,1720596781815,-500.0,0.00013753,2]
[331635722,1720596781842,-896.71,0.00013753,2]
[331635723,1720596781870,-644.50233968,0.00013753,2]
[331635724,1720596781900,-500.0,0.00013753,2]
[331635725,1720596781928,-580.41,0.00013753,2]
[331635726,1720596781959,-714.43,0.00013753,2]
[331635727,1720596781986,-500.0,0.00013753,2]
[331635728,1720596782018,-500.0,0.00013753,2]
[331635729,1720596782048,-1063.58,0.00013753,2]
[331635730,1720596782077,-697.41,0.00013753,2]
[331635731,1720596782106,-500.0,0.00013753,2]
[331635732,1720596782135,-500.0,0.00013753,2]
[331635733,1720596782164,-500.0,0.00013753,2]
[331635734,1720596782373,-541.88,0.00013753,2]
[331635735,1720596782434,-500.0,0.00013753,2]
[331635736,1720596782463,-500.0,0.00013753,2]
[331635737,1720596782494,-500.0,0.00013753,2]
[331635738,1720596782523,-500.0,0.00013753,2]
[331635739,1720596782551,-500.0,0.00013753,2]
[331635740,1720596782580,-678.4,0.00013753,2]
[331635741,1720596782609,-500.0,0.00013753,2]
[331635742,1720596782637,-500.0,0.00013753,2]
[331635743,1720596782666,-500.0,0.00013753,2]
[331635744,1720596782693,-536.63,0.00013753,2]
[331635745,1720596782720,-500.0,0.00013753,2]
[331635746,1720596782753,-700.43,0.00013753,2]
[331635747,1720596782782,-1553.57,0.00013753,2]
[331635748,1720596782809,-500.0,0.00013753,2]
[331635749,1720596782837,-500.0,0.00013753,2]
[331635750,1720596782864,-500.0,0.00013753,2]
[331635751,1720596782892,-1132.2,0.00013753,2]
[331635752,1720596782919,-500.0,0.00013753,2]
[331635753,1720596782947,-500.0,0.00013753,2]
[331635754,1720596782975,-801.93,0.00013753,2]
[331635755,1720596783003,-451.72689906,0.00013753,2]
[331635756,1720596783031,-500.0,0.00013753,2]
[331635757,1720596783058,-1487.11,0.00013753,2]
[331635758,1720596783086,-500.0,0.00013753,2]
[331635759,1720596783114,-521.02,0.00013753,2]
[331635760,1720596783141,-749.38,0.00013753,2]
[331635761,1720596783172,-706.4,0.00013753,2]
[331635762,1720596783200,-500.0,0.00013753,2]
[331635763,1720596783230,-500.0,0.00013753,2]
[331635764,1720596783258,-1394.29,0.00013753,2]
[331635765,1720596783286,-500.0,0.00013753,2]
[331635766,1720596783313,-500.0,0.00013753,2]
[331635767,1720596783341,-736.72,0.00013753,2]
[331635768,1720596783369,-1177.56,0.00013753,2]
[331635769,1720596783397,-500.0,0.00013753,2]
[331635770,1720596783423,-500.0,0.00013753,2]
[331635771,1720596783451,-500.0,0.00013753,2]
[331635772,1720596783478,-883.04,0.00013753,2]
[331635773,1720596783508,-500.0,0.00013753,2]
[331635774,1720596783535,-500.0,0.00013753,2]
[331635775,1720596783563,-500.0,0.00013753,2]
[331635776,1720596783593,-644.21,0.00013753,2]
[331635777,1720596783621,-1314.46,0.00013753,2]
[331635778,1720596783648,-500.0,0.00013753,2]
[331635779,1720596783676,-800.31,0.00013753,2]
[331635780,1720596783704,-500.0,0.00013753,2]
[331635781,1720596783732,-680.87,0.00013753,2]
[331635782,1720596783763,-500.0,0.00013753,2]
[331635783,1720596783791,-520.89,0.00013753,2]
[331635784,1720596783819,-1391.11,0.00013753,2]
[331635785,1720596783846,-863.12,0.00013753,2]
[331635786,1720596783873,-500.0,0.00013753,2]
[331635787,1720596783902,-609.72,0.00013753,2]
[331635788,1720596783930,-828.71,0.00013753,2]
[331635789,1720596783958,-500.0,0.00013753,2]
[331635790,1720596783987,-643.51,0.00013753,2]
[331635791,1720596784015,-500.0,0.00013753,2]
[331635792,1720596784043,-500.0,0.00013753,2]
[331635793,1720596784070,-500.0,0.00013753,2]
[331635794,1720596784098,-500.0,0.00013753,2]
[331635795,1720596784126,-807.57,0.00013753,2]
[331635796,1720596784155,-500.0,0.00013753,2]
[331635797,1720596784183,-500.0,0.00013753,2]
[331635798,1720596784212,-1079.84,0.00013753,2]
[331635799,1720596784240,-500.0,0.00013753,2]
[331635800,1720596784269,-500.0,0.00013753,2]
[331635801,1720596784305,-500.0,0.00013753,2]
[331635802,1720596784336,-500.0,0.00013753,2]
[331635803,1720596784366,-1466.42,0.00013753,2]
[331635804,1720596784396,-645.29,0.00013753,2]
[331635805,1720596784708,-500.0,0.00013753,2]
[331635806,1720596784738,-500.0,0.00013753,2]
[331635807,1720596784767,-500.0,0.00013753,2]
[331635808,1720596784794,-500.0,0.00013753,2]
[331635809,1720596784822,-500.0,0.00013753,2]
[331635810,1720596784851,-500.0,0.00013753,2]
[331635811,1720596784879,-561.13,0.00013753,2]
[331635812,1720596784908,-638.07,0.00013753,2]
[331635813,1720596784937,-500.0,0.00013753,2]
[331635814,1720596784966,-500.0,0.00013753,2]
[331635815,1720596784995,-646.27,0.00013753,2]
[331635816,1720596785022,-1655.78,0.00013753,2]
[331635817,1720596785050,-500.0,0.00013753,2]
[331635818,1720596785078,-500.0,0.00013753,2]
[331635819,1720596785106,-151.0,0.00013753,2]
[331635820,1720596785134,-151.0,0.00013753,2]
[331635821,1720596785162,-209.16626,0.00013753,2]
[331635822,1720596785195,-516.78,0.00013753,2]
[331635823,1720596785224,-500.0,0.00013753,2]
[331635824,1720596785254,-500.0,0.00013753,2]
[331635825,1720596785285,-500.0,0.00013753,2]
[331635826,1720596785318,-457.65279073,0.00013753,2]
[331635827,1720596785349,-1157.38,0.00013753,2]
[331635828,1720596785381,-1177.35,0.00013753,2]
[331635829,1720596785412,-921.7,0.00013753,2]
[331635830,1720596785442,-1009.33,0.00013753,2]
[331635831,1720596785472,-705.11,0.00013753,2]
[331635832,1720596785504,-500.0,0.00013753,2]
[331635833,1720596785534,-500.0,0.00013753,2]
[331635834,1720596785565,-500.0,0.00013753,2]
[331635835,1720596785597,-2286.43,0.00013753,2]
[331635836,1720596785627,-500.0,0.00013753,2]
[331635837,1720596785658,-500.0,0.00013753,2]
[331635838,1720596785690,-151.0,0.00013753,2]
[331635839,1720596785721,-151.0,0.00013753,2]
[331635840,1720596785752,-709.76,0.00013753,2]
[331635841,1720596785782,-904.69,0.00013753,2]
[331635842,1720596785814,-500.0,0.00013753,2]
[331635843,1720596785847,-622.23,0.00013753,2]
[331635844,1720596785875,-500.0,0.00013753,2]
[331635845,1720596785905,-500.0,0.00013753,2]
[331635846,1720596785934,-500.0,0.00013753,2]
[331635847,1720596785964,-521.23,0.00013753,2]
[331635848,1720596785993,-625.57,0.00013753,2]
[331635849,1720596786023,-500.0,0.00013753,2]
[331635850,1720596786052,-194.85344935,0.00013753,2]
[331635851,1720596786080,-580.09,0.00013753,2]
[331635852,1720596786108,-610.11,0.00013753,2]
[331635853,1720596786137,-1012.1,0.00013753,2]
[331635854,1720596786166,-645.36,0.00013753,2]
[331635855,1720596786195,-726.78,0.00013753,2]
[331635856,1720596786224,-500.0,0.00013753,2]
[331635857,1720596786254,-1129.59,0.00013753,2]
[331635858,1720596786282,-500.0,0.00013753,2]
[331635859,1720596786310,-500.0,0.00013753,2]
[331635860,1720596786338,-500.0,0.00013753,2]
[331635861,1720596786377,-500.0,0.00013753,2]
[331635862,1720596786408,-500.0,0.00013753,2]
[331635863,1720596786438,-500.0,0.00013753,2]
[331635864,1720596786466,-1442.4,0.00013753,2]
[331635865,1720596786495,-613.5,0.00013753,2]
[331635866,1720596786525,-534.32,0.00013753,2]
[331635867,1720596786554,-720.57,0.00013753,2]
[331635868,1720596786583,-500.0,0.00013753,2]
[331635869,1720596786613,-500.0,0.00013753,2]
[331635870,1720596786642,-500.0,0.00013753,2]
[331635871,1720596786671,-871.56,0.00013753,2]
[331635872,1720596786699,-2275.79,0.00013753,2]
[331635873,1720596786729,-503.29,0.00013753,2]
[331635874,1720596786759,-1587.03,0.00013753,2]
[331635875,1720596787162,-500.0,0.00013753,2]
[331635876,1720596787198,-500.0,0.00013753,2]
[331635877,1720596787228,-500.0,0.00013753,2]
[331635878,1720596787259,-1198.16,0.00013753,2]
[331635879,1720596787289,-500.0,0.00013753,2]
[331635880,1720596787320,-986.53,0.00013753,2]
[331635881,1720596787351,-500.0,0.00013753,2]
[331635882,1720596787384,-568.46,0.00013753,2]
[331635883,1720596787414,-500.0,0.00013753,2]
[331635884,1720596787444,-500.0,0.00013753,2]
[331635885,1720596787476,-500.0,0.00013753,2]
[331635886,1720596787507,-256.69018396,0.00013753,2]
[331635887,1720596787537,-500.0,0.00013753,2]
[331635888,1720596787566,-500.0,0.00013753,2]
[331635889,1720596787600,-500.0,0.00013753,2]
[331635890,1720596787631,-697.06,0.00013753,2]
[331635891,1720596787660,-580.13,0.00013753,2]
[331635892,1720596787691,-500.0,0.00013753,2]
[331635893,1720596787720,-500.0,0.00013753,2]
[331635894,1720596787754,-500.0,0.00013753,2]
[331635895,1720596787783,-627.37,0.00013753,2]
[331635896,1720596787812,-650.86,0.00013753,2]
[331635897,1720596787842,-500.0,0.00013753,2]
[331635898,1720596787872,-500.0,0.00013753,2]
[331635899,1720596787902,-500.0,0.00013753,2]
[331635900,1720596787933,-690.89,0.00013753,2]
[331635901,1720596787963,-500.0,0.00013753,2]
[331635902,1720596787993,-500.0,0.00013753,2]
[331635903,1720596788027,-1427.77,0.00013753,2]
[331635904,1720596788057,-776.84,0.00013753,2]
[331635905,1720596788087,-1683.17,0.00013753,2]
[331635906,1720596788116,-500.0,0.00013753,2]
[331635907,1720596788146,-585.55,0.00013753,2]
[331635908,1720596788176,-578.39,0.00013753,2]
[331635909,1720596788205,-500.0,0.00013753,2]
[331635910,1720596788236,-1000.01,0.00013753,2]
[331635911,1720596788268,-151.0,0.00013753,2]
[331635912,1720596788298,-151.0,0.00013753,2]
[331635913,1720596788328,-151.0,0.00013753,2]
[331635914,1720596788359,-661.0,0.00013753,2]
[331635915,1720596788392,-158.169913,0.00013753,2]
[331635916,1720596788427,-500.0,0.00013753,2]
[331635917,1720596788459,-1559.04,0.00013753,2]
[331635918,1720596788490,-151.0,0.00013753,2]
[331635919,1720596788521,-1181.03,0.00013753,2]
[331635920,1720596788551,-772.83,0.00013753,2]
[331635921,1720596788582,-151.0,0.00013753,2]
[331635922,1720596788612,-151.0,0.00013753,2]
[331635923,1720596788642,-988.51,0.00013753,2]
[331635924,1720596788671,-821.57,0.00013753,2]
[331635925,1720596788703,-1483.71,0.00013753,2]
[331635926,1720596788732,-500.0,0.00013753,2]
[331635927,1720596788764,-858.65,0.00013753,2]
[331635928,1720596788794,-825.27,0.00013753,2]
[331635929,1720596788824,-1105.16,0.00013753,2]
[331635930,1720596788853,-868.45,0.00013753,2]
[331635931,1720596788882,-500.0,0.00013753,2]
[331635932,1720596788912,-1239.49,0.00013753,2]
[331635933,1720596788941,-500.0,0.00013753,2]
[331635934,1720596788972,-500.0,0.00013753,2]
[331635935,1720596789007,-890.09,0.00013753,2]
[331635936,1720596789037,-572.3,0.00013753,2]
[331635937,1720596789068,-500.0,0.00013753,2]
[331635938,1720596789097,-874.31,0.00013753,2]
[331635939,1720596789126,-500.0,0.00013753,2]
[331635940,1720596789155,-2274.55,0.00013753,2]
[331635941,1720596789184,-500.0,0.00013753,2]
[331635942,1720596789214,-1127.71,0.00013753,2]
[331635943,1720596789243,-935.24,0.00013753,2]
[331635944,1720596789275,-760.0,0.00013753,2]
[331635945,1720596789569,-616.91,0.00013753,2]
[331635946,1720596789600,-779.19,0.00013753,2]
[331635947,1720596789631,-500.0,0.00013753,2]
[331635948,1720596789661,-908.72,0.00013753,2]
[331635949,1720596789690,-2435.74,0.00013753,2]
[331635950,1720596789719,-1288.68,0.00013753,2]
[331635951,1720596789748,-1407.1,0.00013753,2]
[331635952,1720596789778,-503.52,0.00013753,2]
[331635953,1720596789808,-861.05,0.00013753,2]
[331635954,1720596789836,-500.0,0.00013753,2]
[331635955,1720596789866,-1380.88,0.00013753,2]
[331635956,1720596789894,-1349.53,0.00013753,2]
[331635957,1720596789922,-500.0,0.00013753,2]
[331635958,1720596789951,-500.0,0.00013753,2]
[331635959,1720596789980,-500.0,0.00013753,2]
[331635960,1720596790009,-1209.85,0.00013753,2]
[331635961,1720596790039,-596.41,0.00013753,2]
[331635962,1720596790068,-1008.2,0.00013753,2]
[331635963,1720596790097,-500.0,0.00013753,2]
[331635964,1720596790126,-637.95,0.00013753,2]
[331635965,1720596790154,-1710.84,0.00013753,2]
[331635966,1720596790183,-1736.31,0.00013753,2]
[331635967,1720596790212,-500.0,0.00013753,2]
[331635968,1720596790241,-668.32,0.00013753,2]
[331635969,1720596790270,-500.0,0.00013753,2]
[331635970,1720596790299,-569.89,0.00013753,2]
[331635971,1720596790328,-500.0,0.00013753,2]
[331635972,1720596790357,-1213.92,0.00013753,2]
[331635973,1720596790386,-890.61,0.00013753,2]
[331635974,1720596790415,-500.0,0.00013753,2]
[331635975,1720596790444,-1098.79,0.00013753,2]
[331635976,1720596790472,-500.0,0.00013753,2]
[331635977,1720596790501,-500.0,0.00013753,2]
[331635978,1720596790529,-500.0,0.00013753,2]
[331635979,1720596790558,-500.0,0.00013753,2]
[331635980,1720596790589,-943.72,0.00013753,2]
[331635981,1720596790619,-500.0,0.00013753,2]
[331635982,1720596790647,-500.0,0.00013753,2]
[331635983,1720596790676,-500.0,0.00013753,2]
[331635984,1720596790705,-500.0,0.00013753,2]
[331635985,1720596790734,-500.0,0.00013753,2]
[331635986,1720596790764,-500.0,0.00013753,2]
[331635987,1720596790799,-500.0,0.00013753,2]
[331635988,1720596790828,-500.0,0.00013753,2]
[331635989,1720596790857,-2631.43,0.00013753,2]
[331635990,1720596790887,-500.0,0.00013753,2]
[331635991,1720596790916,-614.99,0.00013753,2]
[331635992,1720596790946,-500.0,0.00013753,2]
[331635993,1720596790976,-500.0,0.00013753,2]
[331635994,1720596791006,-854.43,0.00013753,2]
[331635995,1720596791035,-500.0,0.00013753,2]
[331635996,1720596791065,-1440.25,0.00013753,2]
[331635997,1720596791094,-908.97,0.00013753,2]
[331635998,1720596791126,-500.0,0.00013753,2]
[331635999,1720596791155,-1950.95,0.00013753,2]
[331636000,1720596791186,-545.34,0.00013753,2]
[331636001,1720596791215,-1035.92,0.00013753,2]
[331636002,1720596791246,-1578.1,0.00013753,2]
[331636003,1720596791277,-640.84,0.00013753,2]
[331636004,1720596791306,-826.09,0.00013753,2]
[331636005,1720596791334,-500.0,0.00013753,2]
[331636006,1720596791364,-500.0,0.00013753,2]
[331636007,1720596791392,-500.0,0.00013753,2]
[331636008,1720596791423,-151.0,0.00013753,2]
[331636009,1720596791453,-500.0,0.00013753,2]
[331636010,1720596791482,-285.629093,0.00013753,2]
[331636011,1720596791511,-1100.44,0.00013753,2]
[331636012,1720596791540,-809.48,0.00013753,2]
[331636013,1720596791569,-897.5,0.00013753,2]
[331636014,1720596791602,-500.0,0.00013753,2]
[331636015,1720596791859,-500.0,0.00013753,2]
[331636016,1720596791889,-500.0,0.00013753,2]
[331636017,1720596791919,-500.0,0.00013753,2]
[331636018,1720596791948,-500.0,0.00013753,2]
[331636019,1720596791978,-1349.69,0.00013753,2]
[331636020,1720596792010,-500.0,0.00013753,2]
[331636021,1720596792040,-500.0,0.00013753,2]
[331636022,1720596792069,-837.68,0.00013753,2]
[331636023,1720596792098,-714.85,0.00013753,2]
[331636024,1720596792128,-1650.67,0.00013753,2]
[331636025,1720596792158,-500.0,0.00013753,2]
[331636026,1720596792187,-500.0,0.00013753,2]
[331636027,1720596792217,-500.0,0.00013753,2]
[331636028,1720596792247,-1214.37,0.00013753,2]
[331636029,1720596792281,-1203.67,0.00013753,2]
[331636030,1720596792313,-438.09380028,0.00013753,2]
[331636031,1720596792344,-500.0,0.00013753,2]
[331636032,1720596792375,-1473.97,0.00013753,2]
[331636033,1720596792405,-1519.47,0.00013753,2]
[331636034,1720596792433,-500.0,0.00013753,2]
[331636035,1720596792462,-593.41,0.00013753,2]
[331636036,1720596792491,-1750.87,0.00013753,2]
[331636037,1720596792522,-331.44533464,0.00013753,2]
[331636038,1720596792550,-500.0,0.00013753,2]
[331636039,1720596792579,-1518.49,0.00013753,2]
[331636040,1720596792608,-500.0,0.00013753,2]
[331636041,1720596792637,-699.56,0.00013753,2]
[331636042,1720596792668,-504.05,0.00013753,2]
[331636043,1720596792696,-188.96240152,0.00013753,2]
[331636044,1720596792725,-2367.47,0.00013753,2]
[331636045,1720596792759,-1836.93,0.00013753,2]
[331636046,1720596792788,-693.99,0.00013753,2]
[331636047,1720596792816,-500.0,0.00013753,2]
[331636048,1720596792846,-500.0,0.00013753,2]
[331636049,1720596792874,-976.49,0.00013753,2]
[331636050,1720596792902,-1044.98,0.00013753,2]
[331636051,1720596792930,-500.0,0.00013753,2]
[331636052,1720596792959,-1335.34,0.00013753,2]
[331636053,1720596792987,-1836.33,0.00013753,2]
[331636054,1720596793018,-500.0,0.00013753,2]
[331636055,1720596793046,-500.0,0.00013753,2]
[331636056,1720596793074,-500.0,0.00013753,2]
[331636057,1720596793102,-500.0,0.00013753,2]
[331636058,1720596793131,-1260.5,0.00013753,2]
[331636059,1720596793160,-1164.7,0.00013753,2]
[331636060,1720596793189,-2090.06,0.00013753,2]
[331636061,1720596793217,-1435.54,0.00013753,2]
[331636062,1720596793246,-2238.03,0.00013753,2]
[331636063,1720596793276,-1699.93,0.00013753,2]
[331636064,1720596793305,-500.0,0.00013753,2]
[331636065,1720596793333,-1382.37,0.00013753,2]
[331636066,1720596793360,-932.07,0.00013753,2]
[331636067,1720596793388,-1427.14,0.00013753,2]
[331636068,1720596793416,-500.0,0.00013753,2]
[331636069,1720596793443,-1550.5,0.00013753,2]
[331636070,1720596793472,-1304.45,0.00013753,2]
[331636071,1720596793501,-500.0,0.00013753,2]
[331636072,1720596793529,-2033.85,0.00013753,2]
[331636073,1720596793557,-1068.64,0.00013753,2]
[331636074,1720596793586,-500.0,0.00013753,2]
[331636075,1720596793614,-500.0,0.00013753,2]
[331636076,1720596793642,-500.0,0.00013753,2]
[331636077,1720596793670,-500.0,0.00013753,2]
[331636078,1720596793698,-1321.39,0.00013753,2]
[331636079,1720596793728,-907.38,0.00013753,2]
[331636080,1720596793762,-564.2,0.00013753,2]
[331636081,1720596793792,-976.59,0.00013753,2]
[331636082,1720596793822,-646.82,0.00013753,2]
[331636083,1720596793852,-500.0,0.00013753,2]
[331636084,1720596793882,-917.01,0.00013753,2]
[331636085,1720596793914,-500.0,0.00013753,2]
[331636086,1720596794171,-500.0,0.00013753,2]
[331636087,1720596794204,-600.89,0.00013753,2]
[331636088,1720596794237,-500.0,0.00013753,2]
[331636089,1720596794270,-2537.23,0.00013753,2]
[331636090,1720596794300,-500.0,0.00013753,2]
[331636091,1720596794330,-500.0,0.00013753,2]
[331636092,1720596794360,-2286.07,0.00013753,2]
[331636093,1720596794390,-500.0,0.00013753,2]
[331636094,1720596794419,-663.97,0.00013753,2]
[331636095,1720596794448,-555.15,0.00013753,2]
[331636096,1720596794476,-919.95,0.00013753,2]
[331636097,1720596794504,-1289.55,0.00013753,2]
[331636098,1720596794534,-542.57155991,0.00013753,2]
[331636099,1720596794563,-500.0,0.00013753,2]
[331636100,1720596794595,-157.66841511,0.00013753,2]
[331636101,1720596794624,-822.16,0.00013753,2]
[331636102,1720596794653,-500.0,0.00013753,2]
[331636103,1720596794682,-592.48,0.00013753,2]
[331636104,1720596794712,-1307.32,0.00013753,2]
[331636105,1720596794740,-1127.28,0.00013753,2]
[331636106,1720596794771,-2016.19,0.00013753,2]
[331636107,1720596794800,-1009.37,0.00013753,2]
[331636108,1720596794829,-2064.8,0.00013753,2]
[331636109,1720596794859,-500.0,0.00013753,2]
[331636110,1720596794889,-500.0,0.00013753,2]
[331636111,1720596794918,-1140.31,0.00013753,2]
[331636112,1720596794947,-500.0,0.00013753,2]
[331636113,1720596794976,-500.0,0.00013753,2]
[331636114,1720596795009,-500.0,0.00013753,2]
[331636115,1720596795038,-500.0,0.00013753,2]
[331636116,1720596795067,-559.6,0.00013753,2]
[331636117,1720596795097,-1235.77,0.00013753,2]
[331636118,1720596795128,-958.73,0.00013753,2]
[331636119,1720596795158,-2217.21,0.00013753,2]
[331636120,1720596795187,-619.57115537,0.00013753,2]
[331636121,1720596795217,-500.0,0.00013753,2]
[331636122,1720596795247,-1482.0,0.00013753,2]
[331636123,1720596795279,-985.84,0.00013753,2]
[331636124,1720596795312,-576.33,0.00013753,2]
[331636125,1720596795344,-2342.89,0.00013753,2]
[331636126,1720596795378,-500.0,0.00013753,2]
[331636127,1720596795406,-300.096487,0.00013753,2]
[331636128,1720596795436,-2414.62,0.00013753,2]
[331636129,1720596795467,-500.0,0.00013753,2]
[331636130,1720596795496,-500.0,0.00013753,2]
[331636131,1720596795528,-500.0,0.00013753,2]
[331636132,1720596795558,-500.0,0.00013753,2]
[331636133,1720596795590,-500.0,0.00013753,2]
[331636134,1720596795623,-500.0,0.00013753,2]
[331636135,1720596795654,-521.82,0.00013753,2]
[331636136,1720596795686,-568.16,0.00013753,2]
[331636137,1720596795715,-1769.74,0.00013753,2]
[331636138,1720596795745,-1749.46,0.00013753,2]
[331636139,1720596795778,-1725.53,0.00013753,2]
[331636140,1720596795808,-938.13,0.00013753,2]
[331636141,1720596795837,-524.84,0.00013753,2]
[331636142,1720596795866,-1094.7,0.00013753,2]
[331636143,1720596795895,-500.0,0.00013753,2]
[331636144,1720596795928,-1594.62,0.00013753,2]
[331636145,1720596795960,-3249.97,0.00013753,2]
[331636146,1720596795990,-500.0,0.00013753,2]
[331636147,1720596796020,-500.0,0.00013753,2]
[331636148,1720596796050,-500.0,0.00013753,2]
[331636149,1720596796079,-337.14798338,0.00013753,2]
[331636150,1720596796108,-500.0,0.00013753,2]
[331636151,1720596796136,-500.0,0.00013753,2]
[331636152,1720596796164,-1278.61,0.00013753,2]
[331636153,1720596796192,-500.0,0.00013753,2]
[331636154,1720596796222,-1779.01,0.00013753,2]
[331636155,1720596796456,-500.0,0.00013753,2]
[331636156,1720596796487,-500.0,0.00013753,2]
[331636157,1720596796521,-4343.15,0.00013753,2]
[331636158,1720596796551,-1958.42,0.00013753,2]
[331636159,1720596796583,-836.68,0.00013753,2]
[331636160,1720596796613,-500.0,0.00013753,2]
[331636161,1720596796643,-1015.54,0.00013753,2]
[331636162,1720596796671,-652.2,0.00013753,2]
[331636163,1720596796699,-500.0,0.00013753,2]
[331636164,1720596796726,-1036.33,0.00013753,2]
[331636165,1720596796756,-500.0,0.00013753,2]
[331636166,1720596796785,-500.0,0.00013753,2]
[331636167,1720596796814,-500.93,0.00013753,2]
[331636168,1720596796842,-2761.23,0.00013753,2]
[331636169,1720596796870,-1763.74,0.00013753,2]
[331636170,1720596796901,-500.0,0.00013753,2]
[331636171,1720596796932,-1094.25,0.00013753,2]
[331636172,1720596796960,-500.0,0.00013753,2]
[331636173,1720596796989,-1377.0,0.00013753,2]
[331636174,1720596797021,-722.78,0.00013753,2]
[331636175,1720596797050,-1322.17,0.00013753,2]
[331636176,1720596797079,-500.0,0.00013753,2]
[331636177,1720596797107,-500.0,0.00013753,2]
[331636178,1720596797135,-1000.0,0.00013753,2]
[331636179,1720596797164,-504.59,0.00013753,2]
[331636180,1720596797192,-500.0,0.00013753,2]
[331636181,1720596797221,-500.0,0.00013753,2]
[331636182,1720596797249,-1026.89,0.00013753,2]
[331636183,1720596797280,-1181.59,0.00013753,2]
[331636184,1720596797308,-771.36,0.00013753,2]
[331636185,1720596797336,-500.0,0.00013753,2]
[331636186,1720596797363,-1669.52,0.00013753,2]
[331636187,1720596797392,-2079.15,0.00013753,2]
[331636188,1720596797420,-2144.14,0.00013753,2]
[331636189,1720596797449,-845.86,0.00013753,2]
[331636190,1720596797477,-500.0,0.00013753,2]
[331636191,1720596797505,-1065.41,0.00013753,2]
[331636192,1720596797534,-571.33,0.00013753,2]
[331636193,1720596797562,-500.0,0.00013753,2]
[331636194,1720596797594,-1232.8,0.00013753,2]
[331636195,1720596797622,-770.37,0.00013753,2]
[331636196,1720596797650,-529.39,0.00013753,2]
[331636197,1720596797679,-632.65,0.00013753,2]
[331636198,1720596797708,-174.06373328,0.00013753,2]
[331636199,1720596797736,-500.0,0.00013753,2]
[331636200,1720596797765,-3768.71,0.00013753,2]
[331636201,1720596797794,-500.0,0.00013753,2]
[331636202,1720596797822,-500.0,0.00013753,2]
[331636203,1720596797851,-500.0,0.00013753,2]
[331636204,1720596797879,-500.0,0.00013753,2]
[331636205,1720596797907,-502.01,0.00013753,2]
[331636206,1720596797937,-715.2,0.00013753,2]
[331636207,1720596797966,-632.02,0.00013753,2]
[331636208,1720596797995,-2377.78,0.00013753,2]
[331636209,1720596798024,-500.0,0.00013753,2]
[331636210,1720596798051,-1516.78,0.00013753,2]
[331636211,1720596798079,-151.0,0.00013753,2]
[331636212,1720596798108,-641.71,0.00013753,2]
[331636213,1720596798137,-151.0,0.00013753,2]
[331636214,1720596798166,-590.27,0.00013753,2]
[331636215,1720596798195,-500.0,0.00013753,2]
[331636216,1720596798224,-1457.93,0.00013753,2]
[331636217,1720596798252,-516.61,0.00013753,2]
[331636218,1720596798282,-338.18281228,0.00013753,2]
[331636219,1720596798312,-889.11,0.00013753,2]